Cogmind - Beta 15 @@@ ROGUE MODE // 2025.07.15 @ 18:52:13 Player: Welles Greysong Result: Destroyed by XC-L3E(R) with Subdweller Laser Performance ------------- Evolutions (0) 0 Regions Visited (2) 400 Robots Destroyed (9) 45 Value Destroyed (221) 221 Prototype IDs (0) 0 Alien Tech Used (0) 0 Bonus (0) 0 TOTAL SCORE: 666 Bonus ------- None Cogmind --------- Core Integrity 0/250 Matter 286/300 Energy 247/250 System Corruption 0% Temperature Cool (28) Movement Hovering (120) Ox1 Location -10/Subcaves Parts ------- > --- POWER (1) -------- Ion Engine > --- PROPULSION (2) --- Hover Unit > --- UTILITY (2) ------ (None) > --- WEAPON (2) ------- Beamcaster Battle Rifle > --- INVENTORY (5) ---- Flight Unit Small Storage Unit Targeting Computer Subdweller Beam Cannon Assault Rifle Peak State ------------ > --- POWER ------------ Ion Engine > --- PROPULSION ------- Hover Unit Hover Unit > --- UTILITY ---------- Scrap Shield > --- WEAPON ----------- Beamcaster Battle Rifle > --- INVENTORY -------- Flight Unit Small Storage Unit Targeting Computer Subdweller Beam Cannon Assault Rifle [Rating: 14] Favorites ----------- Power Ion Engine Engine Ion Engine Propulsion Hover Unit Wheel Wheel Hover Unit Hover Unit Utility Scrap Shield Device Improved Terrain Scanner Storage Small Storage Unit Protection Scrap Shield Weapon Medium Laser Energy Gun Medium Laser Energy Cannon Subdweller Beam Cannon Ballistic Gun Battle Rifle Build | -11 -10 -10 ------- Run | Yrd Mat Sub Slots Evolved . | . . . Power . | . . . Propulsion . | . . . Utility . | . . . Weapon . | . . . Parts Attached 19 | 7 5 7 Power 2 | 1 1 . Engine 2 | 1 1 . Core . | . . . Reactor . | . . . Propulsion 6 | 2 2 2 Treads . | . . . Leg . | . . . Wheel 2 | 2 . . Hover 4 | . 2 2 Flight . | . . . Utility 3 | 2 . 1 Device 1 | 1 . . Storage 1 | 1 . . Processor . | . . . Hackware . | . . . Protection 1 | . . 1 Artifact . | . . . Weapon 8 | 2 2 4 Energy Gun 3 | . 2 1 Energy Cannon 1 | . . 1 Ballistic Gun 4 | 2 . 2 Ballistic Cannon . | . . . Launcher . | . . . Special Weapon . | . . . Impact Weapon . | . . . Slashing Weapon . | . . . Piercing Weapon . | . . . Special Melee Weapon . | . . . Unidentified Prototypes . | . . . Parts Lost 6 | . . 6 Power . | . . . Propulsion 3 | . . 3 Utility 1 | . . 1 Weapon 2 | . . 2 Highest Loss Streak 3 | . . 3 To Critical Strikes . | . . . Average Backups 5 | 5 7 4 Power . | . 1 . Propulsion 2 | 3 3 1 Utility 2 | . 2 1 Weapon . | . . 1 Tool/Special . | . . . Unused Backups 15 | 1 6 8 Power . | . . . Propulsion 7 | . 5 2 Utility 6 | . . 6 Weapon 2 | 1 1 . Tool/Special . | . . . Average Slot Usage (%) 88 | . 99 84 Engine 14 | . 14 14 Wheel 2 | . 8 . Hover 25 | . 19 27 Device 4 | . 14 1 Storage 4 | . 14 1 Protection 9 | . . 12 Energy Gun 15 | . 17 14 Energy Cannon 2 | . . 3 Ballistic Gun 8 | . 10 8 Peak Build Rating 14 | 9 9 14 Average Rating 10 | 7 8 11 On Entrance 6 | . 9 9 Naked Turns . | . . . Heaviest Build 33 | 14 14 33 Greatest Support 20 | 20 20 12 Greatest Overweight (x) 7 | . 1 7 Average Overweight (x) 1 | . . 1 Largest Inventory Capacity 8 | 8 8 8 Average Capacity 6 | 7 8 5 Most Carried 8 | 8 8 8 Average Carried 5 | 5 7 4 Final Capacity 8 | 8 8 5 Final Carried 8 | 8 8 5 Class Distribution -------------------- 100% | Mutant Dominant Class ---------------- Mutant | -10/Materials Mutant | -10/Subcaves Resources | -11 -10 -10 ----------- Run | Yrd Mat Sub Matter Collected 466 | 338 48 80 Remotely . | . . . Salvage Created 431 | 177 48 206 Parts 28 | 12 2 14 Haulers Intercepted . | . . . Recyclers Shooed 1 | 1 . . Parts Field Recycled . | . . . Retrieved Matter . | . . . Parts Self-Destructed 4 | . . 4 Prevented . | . . . Kills | -11 -10 -10 ------- Run | Yrd Mat Sub Combat Hostiles Destroyed 5 | . 1 4 Guns 4 | . 1 3 Cannons 1 | . . 1 Classes Destroyed 4 | 2 1 1 Tunneler 3 | 3 . . Recycler 1 | 1 . . Grunt 1 | . 1 . Subdweller 4 | . . 4 Best Kill Streak 2 | 2 1 2 Combat Bots Only 2 | . 1 2 Max Kills in Single Turn 1 | 1 1 1 Gunslinging . | . . . Exploded . | . . . Melee . | . . . Uniques/NPCs Destroyed . | . . . Combat | -11 -10 -10 -------- Run | Yrd Mat Sub Hostile Shots Fired 62 | . 4 58 Missed 15 | . . 15 Hits 47 | . 4 43 Projectile 47 | . 4 43 Damage Taken 961 | . 42 919 Core 256 | . 11 245 Absorbed by Shields . | . . . Core Remaining (%) 100 | 100 . . Volleys Fired 42 | 17 4 21 Largest 2 | 2 2 2 Hottest 130 | 40 100 130 Shots Fired 76 | 34 8 34 Gun 73 | 34 8 31 Cannon 3 | . . 3 Launcher . | . . . Special . | . . . Kinetic 42 | 34 . 8 Thermal 34 | . 8 26 Explosive . | . . . Electromagnetic . | . . . Robot Hit Streak 21 | 6 4 21 Robot Miss Streak 3 | 3 1 1 Penetration Max . | . . . Secondary Targets 2 | . . 2 Max Gunslinging Chain 1 | . . 1 Shots Hit Robots 55 | 22 6 27 Core Hits 17 | 6 2 9 Critical Kills . | . . . Critical Parts Destroyed . | . . . Critical Strikes 2 | . 1 1 Burn 1 | . 1 . Destroy 1 | . . 1 Melee Attacks . | . . . Impact . | . . . Slashing . | . . . Piercing . | . . . Sneak Attacks . | . . . Combat Hostiles . | . . . Follow-up Attacks . | . . . Damage Inflicted 739 | 213 73 453 Guns 655 | 213 73 369 Cannons 84 | . . 84 Explosions . | . . . Melee . | . . . Ramming . | . . . Kinetic 301 | 213 . 88 Thermal 438 | . 73 365 Explosive . | . . . Electromagnetic . | . . . Impact . | . . . Slashing . | . . . Piercing . | . . . Highest Corruption . | . . . Average Corruption . | . . . Corruption Purged . | . . . Corruption Blocked . | . . . Overload Shots . | . . . Overflow Damage . | . . . Projectiles . | . . . Explosions . | . . . Melee . | . . . Knockbacks . | . . . Impact . | . . . Kinetic . | . . . Secondary . | . . . Self-Inflicted Damage . | . . . Shots . | . . . Rammed . | . . . Targets Rammed . | . . . Kicked . | . . . Crushed . | . . . Highest Temperature 204 | . 204 54 Average Temperature 57 | . 105 21 Received Heat Transfer 186 | . 24 162 Siege Activations . | . . . Martial Activations . | . . . Shielding Activations . | . . . Robots Disrupted . | . . . Combat Hostiles . | . . . Robots Corrupted . | . . . Combat Hostiles . | . . . Parts Fried . | . . . Impact Corruptions . | . . . Robots Melted . | . . . Combat Hostiles . | . . . Parts Melted 1 | . . 1 Heat Transferred 1073 | . 296 777 Parts Sabotaged . | . . . Parts Stolen . | . . . Parts Stripped . | . . . Power Chain Reactions . | . . . Alert | -11 -10 -10 ------- Run | Yrd Mat Sub Maximum Alert Level . | . . . Low Security (%) 100 | 100 100 . Level 1 . | . . . Level 2 . | . . . Level 3 . | . . . Level 4 . | . . . Level 5 . | . . . High Security . | . . . Max Security . | . . . Peak Influence 30 | 5 30 . Initial . | . . . Average 2 | . 3 . Influence Increases 67 | 20 47 . Destroy 0b10 Robot/C 20 | . 20 . Destroy 0b10 Robot/NC 20 | 20 . . Destroy Leader 10 | . 10 . Successful Hack 17 | . 17 . Influence Decreases 67 | 20 27 20 Entered New Map 10 | . . 10 Time Decay 57 | 20 27 10 Squads Dispatched 1 | . 1 . Investigation 1 | . 1 . Extermination . | . . . Reinforcement . | . . . Assault . | . . . Garrison . | . . . Intercept . | . . . Searches Triggered . | . . . Construction Impeded . | . . . Haulers Reinforced . | . . . Active Scanning Responses . | . . . Cargo Convoy Interrupts . | . . . Stealth | -11 -10 -10 --------- Run | Yrd Mat Sub Distress Signals . | . . . Communications Jammed . | . . . Distress Signals . | . . . Times Spotted 17 | . 4 13 Peak Tracking Total 6 | . 3 6 Tactical Retreats . | . . . Traps | -11 -10 -10 ------- Run | Yrd Mat Sub Traps Triggered 1 | . 1 . Indirectly . | . . . Trap Hack Attempts . | . . . Triggered . | . . . Disarmed . | . . . Reprogrammed . | . . . Reused . | . . . Traps Extracted . | . . . Installed . | . . . Triggered . | . . . Machines | -11 -10 -10 ---------- Run | Yrd Mat Sub Machines Disabled . | . . . Max in Single Turn . | . . . Machines Repaired . | . . . Machines Dismantled . | . . . Machines Sabotaged . | . . . Overloaded Fab Kills . | . . . Hacking | -11 -10 -10 --------- Run | Yrd Mat Sub Machines Accessed 3 | . 3 . Terminals 1 | . 1 . Fabricators . | . . . Repair Stations . | . . . Recycling Units 2 | . 2 . Scanalyzers . | . . . Garrison Access . | . . . Total Hacks 7 | . 7 . Successful 6 | . 6 . Failed 1 | . 1 . Catastrophic . | . . . Database Lockouts . | . . . Manual 7 | . 7 . Terminals 2 | . 2 . Fabricators . | . . . Repair Stations . | . . . Recycling Units 5 | . 5 . Scanalyzers . | . . . Garrison Access . | . . . Terminal Hacks 1 | . 1 . Zone Layout 1 | . 1 . Fabricator Hacks . | . . . Repair Station Hacks . | . . . Recycling Unit Hacks 1 | . 1 . Report Inventory 1 | . 1 . Scanalyzer . | . . . Garrison Access Hacks . | . . . Unauthorized Hacks 4 | . 4 . Terminals 1 | . 1 . Botnet 1 | . 1 . Fabricators . | . . . Repair Stations . | . . . Recycling Units 3 | . 3 . Reject 1 | . 1 . Mask 2 | . 2 . Scanalyzers . | . . . Garrison Access . | . . . Data Cores Recovered . | . . . Used . | . . . Hacking Detections 2 | . 2 . Full Trace Events . | . . . Feedback Events . | . . . Feedback Blocked . | . . . Robot Schematics Acquired . | . . . Robots Built . | . . . Authchips . | . . . Time . | . . . Total Robot Build Rating . | . . . Part Schematics Acquired . | . . . Parts Built . | . . . Authchips . | . . . Time . | . . . Total Part Build Rating . | . . . Parts Repaired . | . . . Time . | . . . Parts Recycled . | . . . Recycled Matter . | . . . Retrieved Matter . | . . . Retrieved Components . | . . . Parts Scanalyzed . | . . . Part Schematics Acquired . | . . . Parts Damaged . | . . . Bothacking | -11 -10 -10 ------------ Run | Yrd Mat Sub Used RIF Installer . | . . . Robots Hacked . | . . . Non-combat . | . . . Combat . | . . . Robot Hacks Applied . | . . . Relay Couplers Released . | . . . Fabnet Peak Effective % . | . . . Robots Rewired . | . . . Allies Hacked . | . . . Hacks Repelled . | . . . Allies | -11 -10 -10 -------- Run | Yrd Mat Sub Total Allies . | . . . Largest Group . | . . . Highest-Rated Group . | . . . Highest-Rated Ally . | . . . Total Orders . | . . . Ally Attacks . | . . . Total Damage . | . . . Kills . | . . . Allies Corrupted . | . . . Allies Melted . | . . . Intel | -11 -10 -10 ------- Run | Yrd Mat Sub Active Infowar (turns) 459 | 65 319 75 Terrain 459 | 65 319 75 Robot Analysis Total . | . . . Derelict Logs Recovered . | . . . Drone Launches . | . . . Drone Recoveries . | . . . Exploration | -11 -10 -10 ------------- Run | Yrd Mat Sub Turns Passed 1393 | 134 319 940 Spaces Moved 840 | 81 259 500 Core 3 | 2 . 1 Treads . | . . . Legs . | . . . Wheels 182 | 79 103 . Hover 655 | . 156 499 Flight . | . . . Fastest Speed 50 | 50 56 116 Average Speed 139 | 79 99 169 Slowest Speed 400 | 80 120 400 Overloaded Moves . | . . . Propulsion Burnouts . | . . . Robots Hopped . | . . . Potential Cave-ins . | . . . Cave-ins Triggered . | . . . Exploration Rate (%) 21 | 4 31 29 Regions Visited 2 Branch Regions 1 Pre-discovered Areas . | . . . Known Exits Taken . | . . . Unknown Exits Taken 2 | 1 1 . Scrap Searched . | . . . Spaces Dug . | . . . Terrain Destroyed . | . . . Melee . | . . . Projectile . | . . . AOE . | . . . Terrain Rammed . | . . . Walls Destroyed . | . . . Machines Disabled . | . . . Actions | -11 -10 -10 --------- Run | Yrd Mat Sub Total 996 | 117 316 563 Wait 40 | 2 30 8 Move 838 | 80 258 500 Hop . | . . . Pick Up 24 | 10 6 8 Fast Attach 17 | 6 5 6 Attach 2 | 1 . 1 Detach 4 | . 2 2 Swap 1 | . . 1 Drop 25 | 1 11 13 Fire 42 | 17 4 21 Melee . | . . . Ram . | . . . Kick . | . . . Crush . | . . . Escape Stasis . | . . . Rewire . | . . . Trap . | . . . Miscellaneous 3 | . . 3 Route ------- -11/Scrapyard -10/Materials (discovered 3 exits: [*Mat] / [*Min] / [*Sub]) -10/Subcaves (discovered 1 exit: [*Mat]) History --------- Turn | Location | Event 9 | -11/Scrapyard | Discovered new exit (range 16) 135 | -11/Scrapyard | Entered Materials 195 | -10/Materials | Discovered new exit (range 8) 303 | -10/Materials | Build established: Mutant 324 | -10/Materials | Discovered new exit (range 12) 445 | -10/Materials | Discovered new exit (range 9) 454 | -10/Materials | Entered Subcaves 499 | -10/Subcaves | Shifting Twisted Machinery released Shrapnel Trap 511 | -10/Subcaves | Ambushed by swarm of Subdwellers 514 | -10/Subcaves | Shifting Twisted Machinery released Sub. Laser 523 | -10/Subcaves | Core integrity fell below 50% 529 | -10/Subcaves | Core integrity fell below 20% 559 | -10/Subcaves | Lost 3 parts (2n1w) 858 | -10/Subcaves | Lost 3 allies 1342 | -10/Subcaves | Discovered new exit (range 12) 1394 | -10/Subcaves | Destroyed by XC-L3E(R) with Subdweller Laser Last Messages --------------- 01068_ Scrap Shield Fragment affixed to Scrap Shield (+28). 01087_ Scrap Shield Fragment affixed to Scrap Shield (+30). 01153_ 7V-8M3(O) collects matter. 01173_ Subatomizers dissect the Seismic Detector. 01175_ 7V-8M3(O) puts together Battle Cannon. 01176_ 7V-8M3(O) collects matter. 01228_ KA-KPC(u) tweaks Twisted Machinery. 01342_ EXIT=FOUND 01375_ QE-Z9K(R) suffers critical hit (Destroy). 01383_ Disposable Heat Sink melted. 01383_ QE-Z9K(R) destroyed. 01383_ Switching to secondary target: SI-DEJ(R). 01386_ Scrap Shield destroyed. 01389_ SI-DEJ(R) destroyed. 01389_ Switching to secondary target: 02-7T0(R). 01390_ Hover Unit destroyed. [Achievement: Back For More] Map ----- +----------------------------------------------------+ | ?????????????????????????????????????????????????? | | ?????????????????????????????????????????????????? | | ?????????????????????????????????????????????????? | | ?????????????????????????????????????????????????? | | ?????????????????????????????????????????????????? | | ?????????????????????????????????????????????????? | | ?????????????????????????????????????????????????? | | ?????????????????????????????????????????????????? | | ?????????????????????????????????????????????????? | | ?????????????????????????????????????????????????? | | ?????????????????????????????????????????????????? | | ?????????????????????????????????????????????????? | | ?????????????????????????????????????????????????? | | ?????????????????????????????????????????????????? | | ?????????????????????????????????????????????????? | | ?????????????????????????????????????????????????? | | ???????????????????????????????????""????????????? | | ????????????????????????#?????? """ ?????????????? | | ??????????????????????## ?????"""" #?????????????? | | ??????????????????????# ?????"" #??????????????? | | ??????????????????????# ?????$ #???????????????? | | ??????????????????????# #???? #????????????????? | | ???????? ???????????###"##??? #?????????????????? | | ????????? ????????### " ##?# #?????????????????? | | ?????????? ???????# ##* ##?????????????????? | | ??????????? ?????## @=%! ##????????????????? | | ?????????# ##### !!&%R #????????????????? | | ????????# !R< ##????????????????? | | ????????# ###?????????????????? | | ?????????### # # # ##???????????????????? | | ???????????##??## ## ##????????????????????? | | ???????????????# #?????????????????????? | | ???????????????## ## ###?????????????????????? | | ????????????????## ######???????????????????????? | | ????????????????# ###########?????????????????? | | ????????????????## ##????????????????? | | ????????????????## #????????????????? | | ????????????????# #????????????????? | | ????????????????# #### #????????????????? | | ????????????????# ## ##???#????????????????? | | ????????????????## ## ##???????????????????? | | ?????????????????# ## ###?????????????????? | | ?????????????????# #### #?????????????????? | | ?????????????????####??# #?????????????????? | | ???????????????????????### ##?????????????????? | | ?????????#####???####????# ##??????????????????? | | ?????????# ##??# ???## #???????????????????? | | ?????????# ##?? ??## ##???????????????????? | | ????????## ##?# #?##" #????????????????????? | | ??????### #?# ###"" ##????????????????????? | +----------------------------------------------------+ Best States ------------- Heat Dissipation 25 Energy Generation 10 Energy Capacity 250 Matter Stores 300 Matter Capacity 300 Sight Range 16 Terrain Scan Range 16 Terrain Scan Density 10 Armor Coverage 800 Evasion (%) 53 Item Schematics ----------------- None Robot Schematics ------------------ None Fabricated ------------ Nothing Repaired ---------- Nothing Alien Tech Used ----------------- None Achievements -------------- Back For More Challenges ------------ None Game ------ Seed BarrageDamperBallwheel Manual? 0 Play Time 00:16:42 Cumulative 13.1 hours Start 2025.07.15 @ 18:35:30 End 2025.07.15 @ 18:52:13 Sessions 1 Manual Loads 0 Difficulty Rogue Special Mode None Game No. 51 Rogue 51 Adventurer 0 Explorer 0 Win Type - Total 0 Types 0/0/0/0/0/0/0/0/0/0 Lore% 17 Gallery% 28 Achievement% 27 Wizard Run 0 Options --------- Layout 1 ASCII 0 Keyboard 0 Movement Numpad Keybinds 0 Fullscreen 2 Font 24/Smallcaps Map View 50x35 Zoom Use 0% Tactical HUD 1 Map Filters NONE Filters NONE Steam 1 RUN: 4a526200-b2c9-43af-a143-1d64d5818f1f